lending/lending_fUSD_20250408
["ID","MTS","AMOUNT","RATE_DAILY","PERIOD"]
[357531822,1744131090500,-500.0,0.00028219,2]
[357531823,1744131090510,-500.0,0.00028219,2]
[357531824,1744131090520,-500.0,0.00028219,2]
[357531825,1744131090530,-893.75,0.00028219,2]
[357531826,1744131090542,-500.0,0.00028219,2]
[357531827,1744131090552,-882.81,0.00028219,2]
[357531828,1744131090561,-635.65,0.00028219,2]
[357531829,1744131090571,-512.96060919,0.00028219,2]
[357531830,1744131090581,-500.0,0.00028219,2]
[357531831,1744131090590,-500.0,0.00028219,2]
[357531832,1744131090600,-554.86,0.00028219,2]
[357531833,1744131090610,-500.0,0.00028219,2]
[357531834,1744131090619,-1285.07,0.00028219,2]
[357531835,1744131090629,-500.0,0.00028219,2]
[357531836,1744131090640,-500.0,0.00028219,2]
[357531837,1744131090650,-815.01,0.00028219,2]
[357531838,1744131090660,-2250.35,0.00028219,2]
[357531839,1744131090670,-828.56,0.00028219,2]
[357531840,1744131090680,-500.0,0.00028219,2]
[357531841,1744131090690,-500.0,0.00028219,2]
[357531842,1744131090700,-553.89,0.00028219,2]
[357531843,1744131090710,-554.97,0.00028219,2]
[357531844,1744131090719,-571.07,0.00028219,2]
[357531845,1744131090728,-500.0,0.00028219,2]
[357531846,1744131090738,-500.0,0.00028219,2]
[357531847,1744131090747,-635.52,0.00028219,2]
[357531848,1744131090757,-500.0,0.00028219,2]
[357531849,1744131090767,-500.0,0.00028219,2]
[357531850,1744131090777,-500.0,0.00028219,2]
[357531851,1744131090788,-729.33,0.00028219,2]
[357531852,1744131090798,-500.0,0.00028219,2]
[357531853,1744131090808,-1155.37,0.00028219,2]
[357531854,1744131090817,-500.0,0.00028219,2]
[357531855,1744131090827,-683.43,0.00028219,2]
[357531856,1744131090837,-500.0,0.00028219,2]
[357531857,1744131090848,-500.0,0.00028219,2]
[357531858,1744131090858,-659.52,0.00028219,2]
[357531859,1744131090869,-959.29,0.00028219,2]
[357531860,1744131090879,-500.0,0.00028219,2]
[357531861,1744131090890,-1042.58,0.00028219,2]
[357531862,1744131090902,-500.0,0.00028219,2]
[357531863,1744131090913,-500.0,0.00028219,2]
[357531864,1744131090924,-502.74,0.00028219,2]
[357531865,1744131090936,-212.94520094,0.00028219,2]
[357531866,1744131090946,-500.0,0.00028219,2]
[357531867,1744131090956,-500.0,0.00028219,2]
[357531868,1744131090965,-500.0,0.00028219,2]
[357531869,1744131090975,-500.0,0.00028219,2]
[357531870,1744131090985,-500.0,0.00028219,2]
[357531871,1744131090994,-500.0,0.00028219,2]
[357531872,1744131091005,-500.0,0.00028219,2]
[357531873,1744131091015,-651.5,0.00028219,2]
[357531874,1744131091025,-500.0,0.00028219,2]
[357531875,1744131091034,-500.0,0.00028219,2]
[357531876,1744131091049,-500.0,0.00028219,2]
[357531877,1744131091058,-433.02370405,0.00028219,2]
[357531878,1744131091068,-594.23,0.00028219,2]
[357531879,1744131091081,-594.32,0.00028219,2]
[357531880,1744131091094,-500.0,0.00028219,2]
[357531881,1744131091104,-764.58,0.00028219,2]
[357531882,1744131091116,-1066.53,0.00028219,2]
[357531883,1744131091126,-554.84,0.00028219,2]
[357531884,1744131091135,-500.0,0.00028219,2]
[357531885,1744131091145,-500.0,0.00028219,2]
[357531886,1744131091157,-784.39,0.00028219,2]
[357531887,1744131091167,-508.06,0.00028219,2]
[357531888,1744131091176,-513.92,0.00028219,2]
[357531889,1744131091186,-500.0,0.00028219,2]
[357531890,1744131091196,-500.0,0.00028219,2]
[357531891,1744131091206,-2000.0,0.00028219,2]
[357531892,1744131091215,-500.0,0.00028219,2]
[357531893,1744131091225,-568.34,0.00028219,2]
[357531894,1744131091236,-1465.9,0.00028219,2]
[357531895,1744131091245,-583.31,0.00028219,2]
[357531896,1744131091256,-500.0,0.00028219,2]
[357531897,1744131091266,-627.5,0.00028219,2]
[357531898,1744131091276,-593.5789388,0.00028219,2]
[357531899,1744131091289,-500.0,0.00028219,2]
[357531900,1744131091300,-500.0,0.00028219,2]
[357531901,1744131091310,-500.0,0.00028219,2]
[357531902,1744131091320,-500.0,0.00028219,2]
[357531903,1744131091330,-500.0,0.00028219,2]
[357531904,1744131091340,-570.96,0.00028219,2]
[357531905,1744131091350,-500.0,0.00028219,2]
[357531906,1744131091361,-702.55,0.00028219,2]
[357531907,1744131091372,-500.0,0.00028219,2]
[357531908,1744131091382,-500.0,0.00028219,2]
[357531909,1744131091392,-500.0,0.00028219,2]
[357531910,1744131091403,-500.0,0.00028219,2]
[357531911,1744131091414,-500.0,0.00028219,2]
[357531912,1744131091424,-627.68,0.00028219,2]
[357531913,1744131091434,-500.0,0.00028219,2]
[357531914,1744131091444,-500.0,0.00028219,2]
[357531915,1744131091454,-500.0,0.00028219,2]
[357531916,1744131091464,-537.7,0.00028219,2]
[357531917,1744131091474,-600.21,0.00028219,2]
[357531918,1744131091484,-717.93,0.00028219,2]
[357531919,1744131091495,-525.64,0.00028219,2]
[357531920,1744131091506,-683.46,0.00028219,2]
[357531921,1744131091517,-500.0,0.00028219,2]
[357531922,1744131091753,-500.0,0.00028219,2]
[357531923,1744131091763,-500.0,0.00028219,2]
[357531924,1744131091773,-1354.7,0.00028219,2]
[357531925,1744131091783,-500.0,0.00028219,2]
[357531926,1744131091794,-748.01,0.00028219,2]
[357531927,1744131091804,-500.0,0.00028219,2]
[357531928,1744131091814,-1010.61,0.00028219,2]
[357531929,1744131091824,-500.0,0.00028219,2]
[357531930,1744131091833,-500.0,0.00028219,2]
[357531931,1744131091843,-564.61,0.00028219,2]
[357531932,1744131091852,-500.0,0.00028219,2]
[357531933,1744131091862,-500.0,0.00028219,2]
[357531934,1744131091872,-500.0,0.00028219,2]
[357531935,1744131091882,-500.0,0.00028219,2]
[357531936,1744131091892,-500.0,0.00028219,2]
[357531937,1744131091903,-790.51,0.00028219,2]
[357531938,1744131091913,-500.0,0.00028219,2]
[357531939,1744131091923,-500.0,0.00028219,2]
[357531940,1744131091933,-1476.66,0.00028219,2]
[357531941,1744131091943,-500.0,0.00028219,2]
[357531942,1744131091953,-500.0,0.00028219,2]
[357531943,1744131091963,-655.26,0.00028219,2]
[357531944,1744131091973,-500.0,0.00028219,2]
[357531945,1744131091983,-737.15,0.00028219,2]
[357531946,1744131091993,-500.0,0.00028219,2]
[357531947,1744131092003,-539.63,0.00028219,2]
[357531948,1744131092012,-500.0,0.00028219,2]
[357531949,1744131092022,-500.0,0.00028219,2]
[357531950,1744131092033,-703.81,0.00028219,2]
[357531951,1744131092047,-677.2,0.00028219,2]
[357531952,1744131092057,-959.99,0.00028219,2]
[357531953,1744131092067,-704.21,0.00028219,2]
[357531954,1744131092081,-641.96,0.00028219,2]
[357531955,1744131092091,-505.48,0.00028219,2]
[357531956,1744131092101,-932.66,0.00028219,2]
[357531957,1744131092111,-812.56,0.00028219,2]
[357531958,1744131092122,-1465.75,0.00028219,2]
[357531959,1744131092132,-580.15,0.00028219,2]
[357531960,1744131092142,-888.6,0.00028219,2]
[357531961,1744131092152,-545.23,0.00028219,2]
[357531962,1744131092163,-889.0,0.00028219,2]
[357531963,1744131092174,-2260.02,0.00028219,2]
[357531964,1744131092184,-794.37,0.00028219,2]
[357531965,1744131092194,-500.0,0.00028219,2]
[357531966,1744131092204,-613.35,0.00028219,2]
[357531967,1744131092214,-500.0,0.00028219,2]
[357531968,1744131092224,-567.81,0.00028219,2]
[357531969,1744131092234,-808.98,0.00028219,2]
[357531970,1744131092244,-845.46,0.00028219,2]
[357531971,1744131092254,-500.0,0.00028219,2]
[357531972,1744131092264,-500.0,0.00028219,2]
[357531973,1744131092274,-593.3,0.00028219,2]
[357531974,1744131092284,-581.16,0.00028219,2]
[357531975,1744131092296,-500.0,0.00028219,2]
[357531976,1744131092306,-500.0,0.00028219,2]
[357531977,1744131092316,-500.0,0.00028219,2]
[357531978,1744131092326,-878.06,0.00028219,2]
[357531979,1744131092335,-343.65586949,0.00028219,2]
[357531980,1744131092345,-1056.72,0.00028219,2]
[357531981,1744131092354,-500.0,0.00028219,2]
[357531982,1744131092364,-1037.85,0.00028219,2]
[357531983,1744131092374,-500.0,0.00028219,2]
[357531984,1744131092383,-203.97091129,0.00028219,2]
[357531985,1744131092394,-624.4,0.00028219,2]
[357531986,1744131092404,-500.0,0.00028219,2]
[357531987,1744131092414,-500.0,0.00028219,2]
[357531988,1744131092424,-500.0,0.00028219,2]
[357531989,1744131092434,-500.0,0.00028219,2]
[357531990,1744131092444,-547.36,0.00028219,2]
[357531991,1744131092454,-500.0,0.00028219,2]
[357531992,1744131092463,-500.0,0.00028219,2]
[357531993,1744131092473,-500.0,0.00028219,2]
[357531994,1744131092482,-1221.73,0.00028219,2]
[357531995,1744131092492,-500.0,0.00028219,2]
[357531996,1744131092502,-500.0,0.00028219,2]
[357531997,1744131092512,-541.77,0.00028219,2]
[357531998,1744131092522,-1049.21,0.00028219,2]
[357531999,1744131092532,-500.0,0.00028219,2]
[357532000,1744131092545,-833.03,0.00028219,2]
[357532001,1744131092554,-500.0,0.00028219,2]
[357532002,1744131092564,-947.72,0.00028219,2]
[357532003,1744131092573,-915.59,0.00028219,2]
[357532004,1744131092583,-151.0,0.00028219,7]
[357532005,1744131092593,-500.0,0.00028219,2]
[357532006,1744131092603,-500.0,0.00028219,2]
[357532007,1744131092612,-2154.22,0.00028219,2]
[357532008,1744131092621,-151.0,0.00028219,7]
[357532009,1744131092630,-500.0,0.00028219,2]
[357532010,1744131092640,-715.09,0.00028219,2]
[357532011,1744131092650,-681.07,0.00028219,2]
[357532012,1744131092662,-806.29,0.00028219,2]
[357532013,1744131092671,-500.0,0.00028219,2]
[357532014,1744131092681,-596.17,0.00028219,2]
[357532015,1744131092690,-500.0,0.00028219,2]
[357532016,1744131092700,-643.21,0.00028219,2]
[357532017,1744131092712,-623.11,0.00028219,2]
[357532018,1744131092721,-895.87,0.00028219,2]
[357532019,1744131092731,-591.63,0.00028219,2]
[357532020,1744131092740,-500.0,0.00028219,2]
[357532021,1744131092750,-500.0,0.00028219,2]
[357532022,1744131092759,-840.88,0.00028219,2]
[357532023,1744131092769,-500.0,0.00028219,2]
[357532024,1744131092778,-500.0,0.00028219,2]
[357532025,1744131092791,-500.0,0.00028219,2]
[357532026,1744131092801,-915.65,0.00028219,2]
[357532027,1744131092810,-500.0,0.00028219,2]
[357532028,1744131092820,-151.0,0.00028219,7]
[357532029,1744131092829,-6189.26,0.00028219,2]
[357532030,1744131092839,-2601.54,0.00028219,2]
[357532031,1744131092848,-500.0,0.00028219,2]
[357532032,1744131092857,-1470.66,0.00028219,2]
[357532033,1744131092866,-500.0,0.00028219,2]
[357532034,1744131092876,-500.0,0.00028219,2]
[357532035,1744131092886,-1161.33,0.00028219,2]
[357532036,1744131092895,-557.06,0.00028219,2]
[357532037,1744131092905,-305.69656033,0.00028219,2]
[357532038,1744131092914,-500.0,0.00028219,2]
[357532039,1744131092924,-500.0,0.00028219,2]
[357532040,1744131092934,-748.03,0.00028219,2]
[357532041,1744131092944,-1784.68,0.00028219,2]
[357532042,1744131092953,-500.0,0.00028219,2]
[357532043,1744131092962,-500.0,0.00028219,2]
[357532044,1744131092972,-736.96,0.00028219,2]
[357532045,1744131092981,-802.54,0.00028219,2]
[357532046,1744131092990,-500.0,0.00028219,2]
[357532047,1744131093000,-500.0,0.00028219,2]
[357532048,1744131093009,-500.0,0.00028219,2]
[357532049,1744131093019,-528.16,0.00028219,2]
[357532050,1744131093029,-1759.78,0.00028219,2]
[357532051,1744131093040,-880.64,0.00028219,2]
[357532052,1744131093050,-878.89,0.00028219,2]
[357532053,1744131093060,-500.0,0.00028219,2]
[357532054,1744131093073,-939.58,0.00028219,2]
[357532055,1744131093085,-735.03,0.00028219,2]
[357532056,1744131093095,-524.35,0.00028219,2]
[357532057,1744131093106,-500.0,0.00028219,2]
[357532058,1744131093116,-500.0,0.00028219,2]
[357532059,1744131093127,-500.0,0.00028219,2]
[357532060,1744131093138,-1127.76,0.00028219,2]
[357532061,1744131093148,-500.0,0.00028219,2]
[357532062,1744131093159,-500.0,0.00028219,2]
[357532063,1744131093171,-950.17,0.00028219,2]
[357532064,1744131093181,-500.0,0.00028219,2]
[357532065,1744131093191,-1017.57,0.00028219,2]
[357532066,1744131093201,-500.0,0.00028219,2]
[357532067,1744131093211,-6178.64,0.00028219,2]
[357532068,1744131093221,-396.28,0.00028219,2]
[357532069,1744131093230,-513.55,0.00028219,2]
[357532070,1744131093241,-500.0,0.00028219,2]
[357532071,1744131093251,-1089.76,0.00028219,2]
[357532072,1744131093261,-500.0,0.00028219,2]
[357532073,1744131093271,-549.65,0.00028219,2]
[357532074,1744131093283,-578.6,0.00028219,2]
[357532075,1744131093296,-841.6,0.00028219,2]
[357532076,1744131093308,-1940.65,0.00028219,2]
[357532077,1744131093318,-394.64927091,0.00028219,2]
[357532078,1744131093334,-671.05,0.00028219,2]
[357532079,1744131093348,-3839.98,0.00028219,2]
[357532080,1744131093364,-500.0,0.00028219,2]
[357532081,1744131093383,-500.0,0.00028219,2]
[357532082,1744131093393,-558.9,0.00028219,2]
[357532083,1744131093403,-500.0,0.00028219,2]
[357532084,1744131093415,-1739.52,0.00028219,2]
[357532085,1744131093425,-500.0,0.00028219,2]
[357532086,1744131093435,-500.0,0.00028219,2]
[357532087,1744131093446,-500.0,0.00028219,2]
[357532088,1744131093457,-180.004315,0.00028219,7]
[357532089,1744131093467,-853.97,0.00028219,2]
[357532090,1744131093479,-734.69,0.00028219,2]
[357532091,1744131093490,-727.58,0.00028219,2]
[357532092,1744131093500,-500.0,0.00028219,2]
[357532093,1744131093511,-167.02588693,0.00028219,2]
[357532094,1744131093522,-1008.41,0.00028219,2]
[357532095,1744131093532,-500.0,0.00028219,2]
[357532096,1744131093545,-500.0,0.00028219,2]
[357532097,1744131093555,-180.004315,0.00028219,7]
[357532098,1744131093565,-990.1,0.00028219,2]
[357532099,1744131093574,-500.0,0.00028219,2]
[357532100,1744131093584,-737.46,0.00028219,2]
[357532101,1744131093594,-880.15,0.00028219,2]
[357532102,1744131093604,-825.98,0.00028219,2]
[357532103,1744131093614,-500.0,0.00028219,2]
[357532104,1744131093625,-872.33,0.00028219,2]
[357532105,1744131093635,-506.13,0.00028219,2]
[357532106,1744131093645,-500.0,0.00028219,2]
[357532107,1744131093656,-2261.1,0.00028219,2]
[357532108,1744131093666,-500.0,0.00028219,2]
[357532109,1744131093675,-500.0,0.00028219,2]
[357532110,1744131093685,-1830.5,0.00028219,2]
[357532111,1744131093696,-2351.91,0.00028219,2]
[357532112,1744131093705,-500.0,0.00028219,2]
[357532113,1744131093716,-727.88,0.00028219,2]
[357532114,1744131093726,-986.07,0.00028219,2]
[357532115,1744131093736,-1859.52,0.00028219,2]
[357532116,1744131093746,-665.51,0.00028219,2]
[357532117,1744131093756,-593.3,0.00028219,2]
[357532118,1744131093765,-500.0,0.00028219,2]
[357532119,1744131093775,-500.0,0.00028219,2]
[357532120,1744131093785,-1483.68,0.00028219,2]
[357532121,1744131093798,-500.0,0.00028219,2]
[357532122,1744131093807,-500.0,0.00028219,2]
[357532123,1744131093817,-4169.04,0.00028219,2]
[357532124,1744131093827,-1258.57,0.00028219,2]
[357532125,1744131093836,-500.0,0.00028219,2]
[357532126,1744131093846,-524.58,0.00028219,2]
[357532127,1744131093855,-500.0,0.00028219,2]
[357532128,1744131093865,-646.63,0.00028219,2]
[357532129,1744131093875,-500.0,0.00028219,2]
[357532130,1744131093886,-500.0,0.00028219,2]
[357532131,1744131093895,-808.53,0.00028219,2]
[357532132,1744131093906,-1146.51,0.00028219,2]
[357532133,1744131093915,-535.91,0.00028219,2]
[357532134,1744131093925,-500.0,0.00028219,2]
[357532135,1744131093935,-24279.06,0.00028219,2]
[357532136,1744131093945,-500.0,0.00028219,2]
[357532137,1744131093955,-1000.0,0.00028219,2]
[357532138,1744131093965,-500.0,0.00028219,2]
[357532139,1744131093974,-500.0,0.00028219,2]
[357532140,1744131093984,-629.25729563,0.00028219,2]
[357532141,1744131093994,-500.0,0.00028219,2]
[357532142,1744131094004,-500.0,0.00028219,2]
[357532143,1744131094015,-500.0,0.00028219,2]
[357532144,1744131094025,-500.0,0.00028219,2]
[357532145,1744131094035,-632.96,0.00028219,2]
[357532146,1744131094048,-1842.22,0.00028219,2]
[357532147,1744131094057,-500.0,0.00028219,2]
[357532148,1744131094067,-892.34,0.00028219,2]
[357532149,1744131094077,-921.97,0.00028219,2]
[357532150,1744131094091,-575.39,0.00028219,2]
[357532151,1744131094101,-735.43,0.00028219,2]
[357532152,1744131094111,-500.0,0.00028219,2]
[357532153,1744131094121,-500.0,0.00028219,2]
[357532154,1744131094133,-1216.92,0.00028219,2]
[357532155,1744131094143,-500.0,0.00028219,2]
[357532156,1744131094154,-500.0,0.00028219,2]
[357532157,1744131094165,-589.43,0.00028219,2]
[357532158,1744131094175,-500.0,0.00028219,2]
[357532159,1744131094271,-500.0,0.00028219,2]
[357532160,1744131094281,-500.0,0.00028219,2]
[357532161,1744131094294,-500.0,0.00028219,2]
[357532162,1744131094305,-500.0,0.00028219,2]
[357532163,1744131094315,-646.32,0.00028219,2]
[357532164,1744131094325,-1299.3,0.00028219,2]
[357532165,1744131094335,-500.0,0.00028219,2]
[357532166,1744131094345,-506.68373588,0.00028219,2]
[357532167,1744131094355,-616.22,0.00028219,2]
[357532168,1744131094366,-4391.56,0.00028219,2]
[357532169,1744131094376,-500.0,0.00028219,2]
[357532170,1744131094386,-735.03,0.00028219,2]
[357532171,1744131094395,-500.0,0.00028219,2]
[357532172,1744131094405,-830.9,0.00028219,2]
[357532173,1744131094415,-573.44,0.00028219,2]
[357532174,1744131094425,-542.44,0.00028219,2]
[357532175,1744131094434,-1398.27,0.00028219,2]
[357532176,1744131094443,-500.0,0.00028219,2]
[357532177,1744131094453,-528.61163905,0.00028219,2]
[357532178,1744131094464,-500.0,0.00028219,2]
[357532179,1744131094473,-500.0,0.00028219,2]
[357532180,1744131094483,-500.0,0.00028219,2]
[357532181,1744131094492,-500.0,0.00028219,2]
[357532182,1744131094502,-763.62,0.00028219,2]
[357532183,1744131094512,-500.0,0.00028219,2]
[357532184,1744131094522,-745.57,0.00028219,2]
[357532185,1744131094531,-500.0,0.00028219,2]
[357532186,1744131094548,-1043.21,0.00028219,2]
[357532187,1744131094559,-812.8,0.00028219,2]
[357532188,1744131094569,-500.0,0.00028219,2]
[357532189,1744131094580,-500.0,0.00028219,2]
[357532190,1744131094589,-500.0,0.00028219,2]
[357532191,1744131094599,-836.32,0.00028219,2]
[357532192,1744131094610,-500.0,0.00028219,2]
[357532193,1744131094621,-813.0,0.00028219,2]
[357532194,1744131094631,-500.0,0.00028219,2]
[357532195,1744131094641,-500.0,0.00028219,2]
[357532196,1744131094650,-512.10299882,0.00028219,2]
[357532197,1744131094659,-524.80619637,0.00028219,2]
[357532198,1744131094669,-500.0,0.00028219,2]
[357532199,1744131094679,-684.15,0.00028219,2]
[357532200,1744131094688,-1564.46,0.00028219,2]
[357532201,1744131094697,-984.76,0.00028219,2]
[357532202,1744131094707,-615.97,0.00028219,2]
[357532203,1744131094716,-630.49,0.00028219,2]
[357532204,1744131094726,-780.29,0.00028219,2]
[357532205,1744131094736,-500.0,0.00028219,2]
[357532206,1744131094745,-794.86,0.00028219,2]
[357532207,1744131094755,-918.03,0.00028219,2]
[357532208,1744131094765,-6319.24,0.00028219,2]
[357532209,1744131094775,-929.59,0.00028219,2]
[357532210,1744131094784,-1679.19,0.00028219,2]
[357532211,1744131094798,-660.39,0.00028219,2]
[357532212,1744131094807,-500.0,0.00028219,2]
[357532213,1744131094817,-500.0,0.00028219,2]
[357532214,1744131094827,-500.0,0.00028219,2]
[357532215,1744131094836,-639.27,0.00028219,2]
[357532216,1744131094846,-500.0,0.00028219,2]
[357532217,1744131094856,-500.0,0.00028219,2]
[357532218,1744131094867,-389.3861222,0.00028219,2]
[357532219,1744131094877,-725.42,0.00028219,2]
[357532220,1744131094887,-751.14,0.00028219,2]
[357532221,1744131094897,-500.0,0.00028219,2]
[357532222,1744131094907,-500.0,0.00028219,2]
[357532223,1744131094918,-500.0,0.00028219,2]
[357532224,1744131094928,-1183.67,0.00028219,2]
[357532225,1744131094937,-1092.38,0.00028219,2]
[357532226,1744131094946,-964.81,0.00028219,2]
[357532227,1744131094956,-500.0,0.00028219,2]
[357532228,1744131094966,-150.0,0.00028492,2]
[357532229,1744131094976,-587.08960503,0.00028492,2]
[357532230,1744131094987,-698.53,0.00028492,2]
[357532231,1744131094996,-698.53,0.00028492,2]
[357532232,1744131095006,-698.53,0.00028492,2]
[357532233,1744131095015,-698.53,0.00028492,2]
[357532234,1744131095027,-698.69140558,0.00028492,2]
[357532235,1744131095036,-500.0,0.00028492,2]
[357532236,1744131095051,-500.0,0.00028492,2]
[357532237,1744131095061,-200.36215672,0.00028492,2]
[357532238,1744131095073,-500.0,0.00028492,2]
[357532239,1744131095084,-500.0,0.00028492,2]
[357532240,1744131095094,-500.0,0.00028492,2]
[357532241,1744131095103,-500.0,0.00028492,2]
[357532242,1744131095115,-500.0,0.00028492,2]
[357532243,1744131095125,-248.1723489,0.00028492,2]
[357532244,1744131095135,-500.0,0.00028493,2]
[357532245,1744131095145,-632.287656,0.00028493,2]
[357532246,1744131095154,-662.496625,0.00028493,2]
[357532247,1744131095166,-500.0,0.00028493,2]
[357532248,1744131095176,-500.0,0.00028493,2]
[357532249,1744131095185,-500.0,0.00028493,2]
[357532250,1744131095195,-500.0,0.00028493,2]
[357532251,1744131095205,-500.0,0.00028493,2]
[357532252,1744131095215,-500.0,0.00028493,2]
[357532253,1744131095224,-500.0,0.00028493,2]
[357532254,1744131095234,-572.51611606,0.00028493,2]
[357532255,1744131095245,-500.0,0.00028493,2]
[357532256,1744131095254,-521.99,0.00028493,2]
[357532257,1744131095264,-1012.34,0.00028493,2]
[357532258,1744131095274,-500.0,0.00028493,2]
[357532259,1744131095283,-500.0,0.00028493,2]
[357532260,1744131095297,-500.0,0.00028493,2]
[357532261,1744131095307,-500.0,0.00028493,2]
[357532262,1744131095317,-164.80017778,0.00028493,2]
[357532263,1744131095327,-500.0,0.00028493,2]
[357532264,1744131095337,-500.0,0.00028493,2]
[357532265,1744131095348,-1008.75,0.00028493,2]
[357532266,1744131095357,-500.0,0.00028493,2]
[357532267,1744131095367,-500.0,0.00028493,2]
[357532268,1744131095377,-572.69,0.00028493,2]
[357532269,1744131095387,-602.0577569,0.00028493,2]
[357532270,1744131095397,-938.36,0.00028493,2]
[357532271,1744131095407,-500.0,0.00028493,2]
[357532272,1744131095416,-500.0,0.00028493,2]
[357532273,1744131095427,-500.0,0.00028493,2]
[357532274,1744131095436,-500.0,0.00028493,2]
[357532275,1744131095446,-799.85,0.00028493,2]
[357532276,1744131095456,-500.0,0.00028493,2]
[357532277,1744131095466,-500.0,0.00028493,2]
[357532278,1744131095476,-500.0,0.00028493,2]
[357532279,1744131095486,-379.44612978,0.00028493,2]
[357532280,1744131095496,-500.0,0.00028493,2]
[357532281,1744131095506,-500.0,0.00028493,2]
[357532282,1744131095515,-500.0,0.00028493,2]
[357532283,1744131095525,-500.0,0.00028493,2]
[357532284,1744131095535,-500.0,0.00028493,2]
[357532285,1744131095547,-500.0,0.00028493,2]
[357532286,1744131095558,-500.0,0.00028493,2]
[357532287,1744131095568,-500.0,0.00028493,2]
[357532288,1744131095579,-936.4,0.00028493,2]
[357532289,1744131095589,-227.4028095,0.00028493,2]
[357532290,1744131095600,-500.0,0.00028493,2]
[357532291,1744131095610,-500.0,0.00028493,2]
[357532292,1744131095621,-500.0,0.00028493,2]
[357532293,1744131095631,-736.0,0.00028493,2]
[357532294,1744131095641,-500.0,0.00028493,2]
[357532295,1744131095651,-500.0,0.00028493,2]
[357532296,1744131095662,-550.93,0.00028493,2]
[357532297,1744131095672,-500.0,0.00028493,2]
[357532298,1744131095682,-500.0,0.00028493,2]
[357532299,1744131095692,-500.0,0.00028493,2]
[357532300,1744131095702,-500.0,0.00028493,2]
[357532301,1744131095713,-621.25,0.00028493,2]
[357532302,1744131095723,-500.0,0.00028493,2]
[357532303,1744131095733,-500.0,0.00028493,2]
[357532304,1744131095743,-500.0,0.00028493,2]
[357532305,1744131095753,-500.0,0.00028493,2]
[357532306,1744131095763,-500.0,0.00028493,2]
[357532307,1744131095774,-500.0,0.00028493,2]
[357532308,1744131095785,-500.0,0.00028493,2]
[357532309,1744131095798,-1509.4,0.00028493,2]
[357532310,1744131095808,-768.18,0.00028493,2]
[357532311,1744131095818,-500.0,0.00028493,2]
[357532312,1744131095828,-500.0,0.00028493,2]
[357532313,1744131095838,-500.0,0.00028493,2]
[357532314,1744131095848,-500.0,0.00028493,2]
[357532315,1744131095858,-500.0,0.00028493,2]
[357532316,1744131095868,-500.0,0.00028493,2]
[357532317,1744131095878,-500.0,0.00028493,2]
[357532318,1744131095887,-734.29,0.00028493,2]
[357532319,1744131095898,-500.0,0.00028493,2]
[357532320,1744131095908,-500.0,0.00028493,2]
[357532321,1744131095918,-500.0,0.00028493,2]